fUSD/lending_fUSD_20240615
["ID","MTS","AMOUNT","RATE_DAILY","PERIOD"]
[329532690,1718419846178,-250.0,0.00019126,2]
[329532691,1718419846189,-392.48505141,0.00019178,2]
[329532692,1718419846201,-207.3291295,0.00019178,2]
[329532693,1718419846222,-500.0,0.00019178,2]
[329532694,1718419846237,-500.0,0.00019178,2]
[329532695,1718419846250,-500.0,0.00019178,2]
[329532697,1718419846261,-500.0,0.00019178,2]
[329532699,1718419846276,-500.0,0.00019178,2]
[329532701,1718419846297,-500.0,0.00019178,2]
[329532702,1718419846309,-500.0,0.00019178,2]
[329532705,1718419846339,-500.0,0.00019178,2]
[329532706,1718419846368,-442.8960985,0.00019178,2]
[329532842,1718419848161,-57.1039015,0.00019178,2]
[329532843,1718419848172,-442.8960985,0.00019178,2]
[329533047,1718419851696,-285.25710037,0.00017259,2]
[329533050,1718419851718,-57.1039015,0.00019178,2]
[329533052,1718419851737,-500.0,0.00019178,2]
[329533054,1718419851748,-477.73899833,0.00019178,2]
[329533056,1718419851780,-22.26100167,0.00019178,2]
[329533058,1718419851796,-500.0,0.00019178,2]
[329533060,1718419851817,-13.49363811,0.00019178,2]
[329533062,1718419851846,-486.50636189,0.00019178,2]
[329533064,1718419851860,-500.0,0.00019178,2]
[329533066,1718419851873,-148.32895905,0.00019178,2]
[329533209,1718420311744,301.76,0.00024329,30]
[329533212,1718420662788,-155.0,0.00017027,2]
[329533213,1718420662845,-365.72100783,0.00017028,2]
[329533214,1718420662885,-155.0,0.00017029,2]
[329533215,1718420662936,-155.0,0.0001703,2]
[329533216,1718420662976,-336.18001313,0.00017047,2]
[329533217,1718420663040,-2693.2039157,0.00017047,2]
[329533218,1718420663106,-197.09828387,0.00017051,2]
[329533219,1718420663152,-150.0,0.00017152,2]
[329533220,1718420663197,-6934.20143501,0.00017153,2]
[329533221,1718420663245,-1639.48,0.00017154,2]
[329533222,1718420663292,-759.45552639,0.00017259,2]
[329533223,1718420663331,-499.99,0.00017534,2]
[329533224,1718420663372,-383.91,0.00017753,2]
[329533225,1718420663411,-237.72,0.00017753,2]
[329533226,1718420685835,364.71,0.00017691,2]
[329533227,1718420756877,1798.39120621,0.00017259,2]
[329533228,1718420833167,-235.81588123,0.00019024,2]
[329533229,1718420833194,-412.24153306,0.00019076,2]
[329533230,1718420833230,-128.89095645,0.00019077,2]
[329533231,1718420854219,-155.00244553,0.00019077,2]
[329533232,1718420902949,276.61,0.00024329,30]
[329533239,1718421033708,-339.85299,0.0001899,2]
[329533240,1718421033735,-209.42837,0.0001899,2]
[329533241,1718421033747,-49.94932393,0.00019075,2]
[329533242,1718421034217,-160.27020274,0.00019075,2]
[329533243,1718421034240,-16.10659802,0.00019077,2]
[329533244,1718421034253,-300.0,0.00019175,2]
[329533245,1718421034264,-211.12454229,0.00019176,2]
[329533246,1718421034899,-123.22764113,0.00019176,2]
[329533247,1718421034921,-155.16337889,0.00019176,2]
[329533248,1718421034945,-1223.19156973,0.00019176,2]
[329533249,1718421034959,-34.87365316,0.00019176,2]
[329533250,1718421034974,-377.08878546,0.00019176,2]
[329533251,1718421034988,-237.13455884,0.00019177,2]
[329533252,1718421035011,-295.33820658,0.00019177,2]
[329533253,1718421035027,-137.95072225,0.00019177,2]
[329533254,1718421035053,-163.58202299,0.00019177,2]
[329533255,1718421035064,-2841.34817824,0.00019178,2]
[329533256,1718421035082,-5603.53690901,0.00019178,2]
[329533257,1718421035414,-2785.94757254,0.00019178,2]
[329533258,1718421035432,-500.0,0.00019178,2]
[329533259,1718421035444,-23574.5482755,0.00019178,2]
[329533260,1718421035461,-1356.52,0.00019178,2]
[329533261,1718421035484,-10173.9670978,0.00019178,2]
[329533262,1718421035524,-200.0,0.0001932,2]
[329533263,1718421035541,-182.62,0.00019336,2]
[329533264,1718421035565,-200.0,0.00019341,2]
[329533265,1718421035578,-250.0,0.00019374,2]
[329533266,1718421035590,-172.66,0.00019416,2]
[329533267,1718421035605,-251.13,0.00019426,2]
[329533268,1718421035619,-183.26,0.00019479,2]
[329533269,1718421035644,-16022.3286971,0.00019479,2]
[329533270,1718421035720,-789.29286824,0.00019479,2]
[329533271,1718421035759,-13109.42743466,0.00019479,2]
[329533272,1718421035789,-720.69,0.0001955,2]
[329533273,1718421035804,-500.0,0.00019576,2]
[329533274,1718421035819,-150.0,0.00019582,2]
[329533275,1718421035876,-1641.79246334,0.00019583,2]
[329533313,1718421039875,-484.04490237,0.00019583,2]
[329533314,1718421039896,-939.46473459,0.00019583,2]
[329533315,1718421040184,-11260.8278997,0.00019583,2]
[329533316,1718421040230,-174.62,0.00019584,2]
[329533317,1718421040243,-2680.9,0.00019609,2]
[329533318,1718421040283,-599.95,0.00019626,2]
[329533319,1718421040298,-1000.0,0.00019663,2]
[329533320,1718421040310,-1591.98,0.00019771,2]
[329533321,1718421040325,-635.68,0.00019853,2]
[329533322,1718421040345,-635.68,0.00019908,2]
[329533323,1718421040359,-172.37,0.0001995,2]
[329533324,1718421040412,-364.71,0.00019955,2]
[329533325,1718421040433,-635.68,0.00019962,2]
[329533326,1718421040447,-6269.45372724,0.0002,2]
[329533327,1718421040474,-813.85017962,0.0002,2]
[329533328,1718421040505,-292.27305296,0.0002,2]
[329533329,1718421040528,-3439.78804131,0.0002,2]
[329533330,1718421040542,-155.0,0.0002,2]
[329533331,1718421040564,-155.76526414,0.0002,4]
[329533332,1718421040587,-635.68,0.00020016,2]
[329533333,1718421040623,-264.15838277,0.00020071,2]
[329533335,1718421041297,-371.52161723,0.00020071,2]
[329533336,1718421041327,-226.79813277,0.000201,2]
[329533337,1718421041339,-635.68,0.00020125,2]
[329533338,1718421041353,-178.2,0.00020136,2]
[329533339,1718421041381,-800.0,0.00020137,2]
[329533340,1718421041394,-635.68,0.0002018,2]
[329533341,1718421041407,-635.68,0.00020234,2]
[329533342,1718421041422,-167.01,0.00020245,2]
[329533343,1718421041457,-635.68,0.00020289,2]
[329533344,1718421041485,-635.68,0.00020343,2]
[329533345,1718421041526,-635.68,0.00020398,2]
[329533346,1718421041553,-635.68,0.00020452,2]
[329533347,1718421041572,-635.68,0.00020506,2]
[329533348,1718421041597,-635.68,0.00020561,2]
[329533349,1718421041608,-635.68,0.00020615,2]
[329533350,1718421041621,-635.68,0.0002067,2]
[329533351,1718421041637,-4504.0,0.000207,5]
[329533352,1718421041670,-635.68,0.00020724,2]
[329533353,1718421041698,-150.90322617,0.00020759,2]
[329533354,1718421041710,-635.68,0.00020779,2]
[329533355,1718421041725,-635.68,0.00020833,2]
[329533356,1718421041788,-488.72502364,0.00020846,2]
[329533357,1718421041816,-635.68,0.00020887,2]
[329533358,1718421041880,-420.0,0.00020897,2]
[329533359,1718421041926,-235.69,0.00020987,2]
[329533360,1718421041957,-1250.0,0.00021,2]
[329533361,1718421041984,-9839.13395872,0.00021111,2]
[329533362,1718421042003,-1154.89997,0.00021111,2]
[329533363,1718421042062,-4192.50992066,0.00021111,2]
[329533364,1718421042134,-524.18265939,0.00021111,2]
[329533365,1718421042157,-330.2694009,0.00021111,2]
[329533366,1718421042228,-1272.39642856,0.00021111,2]
[329533367,1718421042265,-683.175201,0.00021111,2]
[329533368,1718421042308,-44.49496077,0.00021111,2]
[329533369,1718421042320,-1295.76980684,0.00021111,2]
[329533370,1718421042343,-1194.32309316,0.00021111,2]
[329533371,1718421042354,-63.96229826,0.00021139,2]
[329533373,1718421042368,-451.57864314,0.00021139,2]
[329533374,1718421042383,-6842.5,0.00021139,2]
[329533376,1718421042687,-811.8769586,0.00021139,2]
[329533377,1718421042699,-178.93,0.00021177,2]
[329533378,1718421042711,-3483.62877664,0.00021178,2]
[329533379,1718421042724,-254.99999,0.00021178,2]
[329533380,1718421042744,-611.56751101,0.00021178,2]
[329533381,1718421042788,-1225.92891502,0.00021178,2]
[329533382,1718421042809,-951.39790733,0.00021178,2]
[329533383,1718421042822,-1282.3759,0.00021178,2]
[329533384,1718421042860,-178.93,0.00021183,2]
[329533385,1718421042871,-178.93,0.00021188,2]
[329533386,1718421042906,-178.93,0.00021194,2]
[329533387,1718421042926,-178.93,0.000212,2]
[329533388,1718421042969,-178.93,0.00021205,2]
[329533389,1718421043002,-178.93,0.00021211,2]
[329533390,1718421043014,-178.93,0.00021216,2]
[329533391,1718421043033,-178.93,0.00021222,2]
[329533392,1718421043061,-178.93,0.00021227,2]
[329533393,1718421043136,-178.93,0.00021233,2]
[329533394,1718421043161,-178.93,0.00021239,2]
[329533395,1718421043178,-178.93,0.00021244,2]
[329533396,1718421043225,-178.93,0.0002125,2]
[329533397,1718421043242,-178.93,0.00021255,2]
[329533398,1718421043254,-178.93,0.00021261,2]
[329533399,1718421043271,-101.72561267,0.00021266,2]
[329533405,1718421044648,-77.20438733,0.00021266,2]
[329533406,1718421044671,-178.93,0.00021272,2]
[329533407,1718421044683,-178.93,0.00021277,2]
[329533408,1718421044694,-0.6064355,0.00021283,2]
[329533410,1718421044708,-178.3235645,0.00021283,2]
[329533411,1718421044722,-167.01,0.00021359,2]
[329533412,1718421044733,-88.15602675,0.0002149,2]
[329533413,1718421045021,-287.74500001,0.0002149,2]
[329533414,1718421045117,-173.38033324,0.0002149,2]
[329533415,1718421045130,-500.0,0.00021506,2]
[329533416,1718421045142,-429.97845481,0.00021715,2]
[329533417,1718421045153,-201.71217529,0.00021716,3]
[329533418,1718421045179,-150.0,0.00021759,2]
[329533419,1718421045201,-10000.0,0.00021817,2]
[329533420,1718421045217,-3759.7032,0.00021817,2]
[329533421,1718421045241,-196.9346,0.00021817,2]
[329533422,1718421045316,-779.19510938,0.00021817,2]
[329533423,1718421045328,-334.17574655,0.00021817,2]
[329533424,1718421045353,-906.0,0.000219,2]
[329533425,1718421045393,-1658.75902451,0.00021915,2]
[329533426,1718421045423,-500.0,0.00021916,2]
[329533427,1718421045483,-500.0,0.00021916,2]
[329533428,1718421045498,-597.77747894,0.00021916,2]
[329533429,1718421045511,-500.0,0.00021916,2]
[329533430,1718421045531,-500.0,0.00021916,2]
[329533431,1718421045543,-500.0,0.00021916,2]
[329533432,1718421045581,-500.0,0.00021916,2]
[329533433,1718421045593,-500.0,0.00021916,2]
[329533434,1718421045626,-500.0,0.00021916,2]
[329533435,1718421045657,-500.0,0.00021916,2]
[329533436,1718421045679,-500.0,0.00021916,2]
[329533437,1718421045690,-500.0,0.00021916,2]
[329533438,1718421045702,-500.0,0.00021916,2]
[329533439,1718421045732,-500.0,0.00021916,2]
[329533440,1718421045760,-500.0,0.00021916,2]
[329533441,1718421045792,-500.0,0.00021916,2]
[329533442,1718421045804,-500.0,0.00021916,2]
[329533443,1718421045831,-500.0,0.00021916,2]
[329533444,1718421045843,-500.0,0.00021916,2]
[329533445,1718421045874,-500.0,0.00021917,2]
[329533446,1718421045896,-500.0,0.00021917,2]
[329533447,1718421045914,-501.4464726,0.00021917,2]
[329533448,1718421045951,-500.0,0.00021917,2]
[329533449,1718421045988,-500.0,0.00021917,2]
[329533450,1718421046008,-500.0,0.00021917,2]
[329533451,1718421046020,-500.0,0.00021917,2]
[329533452,1718421046040,-500.0,0.00021917,2]
[329533453,1718421046052,-500.0,0.00021917,2]
[329533454,1718421046071,-500.0,0.00021917,2]
[329533455,1718421046103,-500.0,0.00021917,2]
[329533456,1718421046116,-500.0,0.00021917,2]
[329533457,1718421046134,-256.50256145,0.00021917,2]
[329533458,1718421046152,-500.0,0.00021917,2]
[329533459,1718421046164,-500.0,0.00021917,2]
[329533460,1718421046181,-500.0,0.00021917,2]
[329533461,1718421046195,-500.0,0.00021917,2]
[329533462,1718421046211,-500.0,0.00021917,2]
[329533463,1718421046229,-500.0,0.00021917,2]
[329533464,1718421046244,-500.0,0.00021917,2]
[329533465,1718421046258,-500.0,0.00021917,2]
[329533466,1718421046270,-500.0,0.00021917,2]
[329533467,1718421046282,-500.0,0.00021917,2]
[329533468,1718421046293,-500.0,0.00021917,2]
[329533469,1718421046304,-500.0,0.00021917,2]
[329533470,1718421046319,-500.0,0.00021917,2]
[329533471,1718421046344,-500.0,0.00021917,2]
[329533472,1718421046360,-500.0,0.00021917,2]
[329533473,1718421046373,-500.0,0.00021917,2]
[329533474,1718421046388,-353.63182589,0.00021917,2]
[329533475,1718421046405,-500.0,0.00021917,2]
[329533476,1718421046442,-386.82178024,0.00021917,2]
[329533477,1718421046462,-500.0,0.00021917,2]
[329533478,1718421046480,-500.0,0.00021917,2]
[329533479,1718421046493,-500.0,0.00021917,2]
[329533480,1718421046510,-501.37830666,0.00021917,2]
[329533481,1718421046556,-500.0,0.00021917,2]
[329533482,1718421046593,-500.0,0.00021917,2]
[329533483,1718421046628,-500.0,0.00021917,2]
[329533484,1718421046649,-500.0,0.00021917,2]
[329533485,1718421046674,-500.0,0.00021917,2]
[329533486,1718421046704,-500.0,0.00021917,2]
[329533487,1718421046730,-500.0,0.00021917,2]
[329533488,1718421046761,-500.0,0.00021917,2]
[329533489,1718421046773,-500.0,0.00021917,2]
[329533490,1718421046787,-319.9,0.00021917,2]
[329533491,1718421046839,-512.55632662,0.00021917,2]
[329533492,1718421046852,-500.0,0.00021917,2]
[329533493,1718421046876,-500.0,0.00021917,2]
[329533495,1718421046921,-500.0,0.00021917,2]
[329533496,1718421046950,-500.0,0.00021917,2]
[329533497,1718421046970,-500.0,0.00021917,2]
[329533498,1718421047002,-510.07328372,0.00021917,2]
[329533499,1718421047022,-500.0,0.00021917,2]
[329533500,1718421047040,-500.0,0.00021917,2]
[329533501,1718421047051,-500.0,0.00021917,2]
[329533502,1718421047065,-500.0,0.00021917,2]
[329533503,1718421047078,-500.0,0.00021917,2]
[329533504,1718421047090,-500.0,0.00021917,2]
[329533505,1718421047101,-500.0,0.00021917,2]
[329533506,1718421047113,-500.0,0.00021917,2]
[329533507,1718421047124,-500.0,0.00021917,2]
[329533508,1718421047140,-500.0,0.00021917,2]
[329533509,1718421047179,-500.0,0.00021917,2]
[329533510,1718421047220,-500.0,0.00021917,2]
[329533511,1718421047235,-500.0,0.00021917,2]
[329533512,1718421047250,-500.0,0.00021917,2]
[329533513,1718421047263,-500.0,0.00021917,2]
[329533514,1718421047278,-500.0,0.00021917,2]
[329533515,1718421047291,-249.55716086,0.00021917,2]
[329533516,1718421047310,-500.0,0.00021917,2]
[329533517,1718421047322,-500.0,0.00021917,2]
[329533518,1718421047334,-500.0,0.00021917,2]
[329533519,1718421047348,-500.0,0.00021917,2]
[329533520,1718421047360,-500.0,0.00021917,2]
[329533521,1718421047372,-500.0,0.00021917,2]
[329533522,1718421047400,-500.0,0.00021917,2]
[329533523,1718421047423,-500.0,0.00021917,2]
[329533524,1718421047435,-500.0,0.00021917,2]
[329533525,1718421047464,-500.0,0.00021917,2]
[329533526,1718421047474,-500.0,0.00021917,2]
[329533527,1718421047485,-500.0,0.00021917,2]
[329533528,1718421047495,-500.0,0.00021917,2]
[329533529,1718421047518,-500.0,0.00021917,2]
[329533531,1718421047531,-500.0,0.00021917,2]
[329533532,1718421047544,-500.0,0.00021917,2]
[329533534,1718421047562,-500.0,0.00021917,2]
[329533535,1718421047577,-500.0,0.00021917,2]
[329533538,1718421047596,-500.0,0.00021917,2]
[329533539,1718421047612,-500.0,0.00021917,2]
[329533540,1718421047625,-500.0,0.00021917,2]
[329533541,1718421047642,-500.0,0.00021917,2]
[329533542,1718421047655,-845.4,0.00021917,2]
[329533543,1718421047670,-500.0,0.00021917,2]
[329533544,1718421047688,-500.0,0.00021917,2]
[329533545,1718421047703,-500.0,0.00021917,2]
[329533546,1718421047728,-500.0,0.00021917,2]
[329533547,1718421047744,-500.0,0.00021917,2]
[329533548,1718421047759,-500.0,0.00021917,2]
[329533549,1718421047775,-500.0,0.00021917,2]
[329533550,1718421047787,-500.0,0.00021917,2]
[329533551,1718421047798,-500.0,0.00021917,2]
[329533552,1718421047833,-500.0,0.00021917,2]
[329533553,1718421047849,-500.0,0.00021917,2]
[329533554,1718421047871,-500.0,0.00021917,2]
[329533555,1718421047887,-500.0,0.00021917,2]
[329533556,1718421047899,-500.0,0.00021917,2]
[329533557,1718421047942,-500.0,0.00021917,2]
[329533558,1718421047969,-500.0,0.00021917,2]
[329533559,1718421047998,-500.0,0.00021917,2]
[329533560,1718421048031,-500.0,0.00021917,2]
[329533561,1718421048054,-500.0,0.00021917,2]
[329533562,1718421048066,-500.0,0.00021917,2]
[329533563,1718421048077,-509.98330794,0.00021917,2]
[329533564,1718421048090,-746.29,0.00021917,2]
[329533565,1718421048114,-500.0,0.00021917,2]
[329533566,1718421048128,-500.0,0.00021917,2]
[329533567,1718421048150,-500.0,0.00021917,2]
[329533568,1718421048177,-500.0,0.00021917,2]
[329533569,1718421048190,-500.0,0.00021917,2]
[329533570,1718421048209,-500.0,0.00021917,2]
[329533571,1718421048225,-500.0,0.00021917,2]
[329533572,1718421048242,-554.34,0.00021917,2]
[329533573,1718421048253,-500.0,0.00021917,2]
[329533574,1718421048265,-500.0,0.00021917,2]
[329533575,1718421048281,-500.0,0.00021917,2]
[329533576,1718421048308,-500.0,0.00021917,2]
[329533577,1718421048338,-500.0,0.00021917,2]
[329533578,1718421048357,-500.0,0.00021917,2]
[329533579,1718421048369,-500.0,0.00021917,2]
[329533580,1718421048415,-500.0,0.00021917,2]
[329533581,1718421048439,-500.0,0.00021917,2]
[329533582,1718421048452,-500.0,0.00021917,2]
[329533583,1718421048466,-500.0,0.00021917,2]
[329533584,1718421048477,-500.0,0.00021917,2]
[329533585,1718421048488,-500.0,0.00021917,2]
[329533586,1718421048721,-500.0,0.00021917,2]
[329533587,1718421048738,-1157.07,0.00021917,2]
[329533588,1718421048754,-501.30638336,0.00021917,2]
[329533589,1718421048767,-500.0,0.00021917,2]
[329533590,1718421048778,-505.24001453,0.00021917,2]
[329533591,1718421048799,-500.0,0.00021917,2]
[329533592,1718421048816,-827.8,0.00021917,2]
[329533593,1718421048843,-500.0,0.00021917,2]
[329533594,1718421048864,-503.49204807,0.00021917,2]
[329533595,1718421048884,-500.0,0.00021917,2]
[329533596,1718421048908,-503.5917661,0.00021917,2]
[329533597,1718421048925,-500.0,0.00021917,2]
[329533598,1718421048950,-500.0,0.00021917,2]
[329533599,1718421048965,-500.0,0.00021917,2]
[329533600,1718421048979,-503.85875793,0.00021917,2]
[329533601,1718421048999,-500.0,0.00021917,2]
[329533602,1718421049013,-500.0,0.00021917,2]
[329533603,1718421049044,-507.97264791,0.00021917,2]
[329533604,1718421049061,-513.29148513,0.00021917,2]
[329533605,1718421049076,-500.0,0.00021917,2]
[329533606,1718421049097,-500.0,0.00021917,2]
[329533607,1718421049108,-500.0,0.00021917,2]
[329533608,1718421049122,-500.0,0.00021917,2]
[329533609,1718421049134,-521.9561953,0.00021917,2]
[329533610,1718421049147,-559.07283842,0.00021917,2]
[329533611,1718421049158,-500.0,0.00021917,2]
[329533612,1718421049168,-505.42816956,0.00021917,2]
[329533613,1718421049180,-500.0,0.00021917,2]
[329533614,1718421049190,-500.0,0.00021917,2]
[329533615,1718421049202,-535.01825231,0.00021917,2]
[329533616,1718421049215,-500.0,0.00021917,2]
[329533617,1718421049231,-500.0,0.00021917,2]
[329533618,1718421049241,-500.0,0.00021917,2]
[329533619,1718421049272,-510.30353376,0.00021917,2]
[329533620,1718421049284,-500.0,0.00021917,2]
[329533621,1718421049297,-519.85744307,0.00021917,2]
[329533622,1718421049308,-253.20893175,0.00021917,2]
[329533623,1718421049327,-500.0,0.00021917,2]
[329533624,1718421049338,-500.0,0.00021917,2]
[329533625,1718421049352,-500.0,0.00021917,2]
[329533626,1718421049375,-214.57670854,0.00021917,2]
[329533627,1718421049395,-500.0,0.00021917,2]
[329533628,1718421049408,-500.0,0.00021917,2]
[329533629,1718421049426,-500.0,0.00021917,2]
[329533630,1718421049447,-574.78844243,0.00021917,2]
[329533631,1718421049460,-500.0,0.00021917,2]
[329533632,1718421049473,-500.0,0.00021917,2]
[329533633,1718421049486,-509.60769435,0.00021917,2]
[329533634,1718421049497,-500.0,0.00021917,2]
[329533635,1718421049520,-531.21269219,0.00021917,2]
[329533636,1718421049539,-507.24684273,0.00021917,2]
[329533637,1718421049551,-500.0,0.00021917,2]
[329533638,1718421049563,-512.35,0.00021917,2]
[329533639,1718421049578,-508.58149372,0.00021917,2]
[329533640,1718421049593,-443.72334931,0.00021917,2]
[329533641,1718421049616,-504.88601442,0.00021917,2]
[329533642,1718421049628,-511.90199245,0.00021917,2]
[329533643,1718421049640,-513.84826138,0.00021917,2]
[329533644,1718421049651,-500.0,0.00021917,2]
[329533645,1718421049662,-500.0,0.00021917,2]
[329533646,1718421049675,-500.0,0.00021917,2]
[329533647,1718421049685,-500.0,0.00021917,2]
[329533648,1718421049708,-506.21235115,0.00021917,2]
[329533649,1718421049727,-500.0,0.00021917,2]
[329533650,1718421049739,-500.0,0.00021917,2]
[329533651,1718421049752,-500.0,0.00021917,2]
[329533652,1718421049808,-500.0,0.00021917,2]
[329533653,1718421049831,-579.89992078,0.00021917,2]
[329533654,1718421049854,-500.0,0.00021917,2]
[329533655,1718421049865,-500.0,0.00021917,2]
[329533656,1718421049883,-500.0,0.00021917,2]
[329533657,1718421049906,-500.0,0.00021917,2]
[329533658,1718421049929,-500.0,0.00021917,2]
[329533659,1718421049944,-500.0,0.00021917,2]
[329533660,1718421049956,-500.0,0.00021917,2]
[329533661,1718421049968,-500.0,0.00021917,2]
[329533662,1718421049980,-515.42826025,0.00021917,2]
[329533663,1718421049997,-500.0,0.00021917,2]
[329533664,1718421050020,-500.0,0.00021917,2]
[329533665,1718421050035,-500.0,0.00021917,2]
[329533666,1718421050049,-500.0,0.00021917,2]
[329533667,1718421050070,-516.37118615,0.00021917,2]
[329533668,1718421050088,-500.0,0.00021917,2]
[329533669,1718421050100,-500.0,0.00021917,2]
[329533670,1718421050123,-500.0,0.00021917,2]
[329533671,1718421050156,-500.0,0.00021917,2]
[329533672,1718421050175,-500.0,0.00021917,2]
[329533673,1718421050205,-550.02982647,0.00021917,2]
[329533674,1718421050223,-500.0,0.00021917,2]
[329533675,1718421050246,-500.0,0.00021917,2]
[329533676,1718421050273,-500.0,0.00021917,2]
[329533677,1718421050291,-500.0,0.00021917,2]
[329533678,1718421050303,-500.0,0.00021917,2]
[329533679,1718421050317,-500.0,0.00021917,2]
[329533680,1718421050359,-505.69597313,0.00021917,2]
[329533681,1718421050371,-500.0,0.00021917,2]
[329533682,1718421050384,-500.0,0.00021917,2]
[329533683,1718421050397,-500.0,0.00021917,2]
[329533684,1718421050409,-500.0,0.00021917,2]
[329533685,1718421050421,-500.0,0.00021917,2]
[329533686,1718421050445,-506.50504438,0.00021917,2]
[329533687,1718421050456,-500.0,0.00021917,2]
[329533688,1718421050478,-500.0,0.00021917,2]
[329533689,1718421050504,-539.30419654,0.00021917,2]
[329533690,1718421050518,-500.0,0.00021917,2]
[329533691,1718421050529,-500.0,0.00021917,2]
[329533692,1718421050544,-500.0,0.00021917,2]
[329533693,1718421050555,-500.0,0.00021917,2]
[329533694,1718421050581,-500.0,0.00021917,2]
[329533695,1718421050592,-500.0,0.00021917,2]
[329533696,1718421050609,-500.0,0.00021917,2]
[329533697,1718421050633,-1154.45,0.00021917,2]
[329533698,1718421050652,-540.07956921,0.00021917,2]
[329533699,1718421050672,-500.0,0.00021917,2]
[329533700,1718421050706,-500.0,0.00021917,2]
[329533701,1718421050725,-500.0,0.00021917,2]
[329533702,1718421050737,-536.09614828,0.00021917,2]
[329533703,1718421050766,-500.0,0.00021917,2]
[329533704,1718421050788,-500.0,0.00021917,2]
[329533705,1718421050803,-500.0,0.00021917,2]
[329533706,1718421050818,-500.0,0.00021917,2]
[329533707,1718421050836,-500.0,0.00021917,2]
[329533708,1718421050857,-500.0,0.00021917,2]
[329533709,1718421050869,-500.0,0.00021917,2]
[329533710,1718421050887,-500.0,0.00021917,2]
[329533711,1718421050901,-500.0,0.00021917,2]
[329533712,1718421050915,-500.0,0.00021917,2]
[329533713,1718421050937,-500.0,0.00021917,2]
[329533714,1718421050951,-500.0,0.00021917,2]
[329533715,1718421050963,-500.0,0.00021917,2]
[329533716,1718421050976,-500.0,0.00021917,2]
[329533717,1718421050988,-500.0,0.00021917,2]
[329533718,1718421051000,-500.0,0.00021917,2]
[329533719,1718421051013,-500.0,0.00021917,2]
[329533720,1718421051024,-500.0,0.00021917,2]
[329533721,1718421051036,-500.0,0.00021917,2]
[329533722,1718421051050,-500.0,0.00021917,2]
[329533723,1718421051071,-524.59304627,0.00021917,2]
[329533724,1718421051089,-500.0,0.00021917,2]
[329533725,1718421051114,-533.29991776,0.00021917,2]
[329533726,1718421051129,-500.0,0.00021917,2]
[329533727,1718421051140,-500.0,0.00021917,2]
[329533728,1718421051154,-500.0,0.00021917,2]
[329533729,1718421051167,-500.0,0.00021917,2]
[329533730,1718421051192,-500.0,0.00021917,2]
[329533731,1718421051215,-500.0,0.00021917,2]
[329533732,1718421051228,-500.0,0.00021917,2]
[329533733,1718421051245,-500.0,0.00021917,2]
[329533734,1718421051257,-428.69120199,0.00021917,2]
[329533735,1718421051323,-120.50079265,0.00021917,2]
[329533736,1718421051335,-500.0,0.00021917,2]
[329533737,1718421051350,-500.0,0.00021917,2]
[329533738,1718421051361,-500.0,0.00021917,2]
[329533739,1718421051383,-500.0,0.00021917,2]
[329533740,1718421051396,-500.0,0.00021917,2]
[329533741,1718421051417,-500.0,0.00021917,2]
[329533742,1718421051433,-500.0,0.00021917,2]
[329533743,1718421051447,-500.0,0.00021917,2]